bitfinex-derivatives/quotes_BTCF0:USTF0_20250129
["timestamp","ask_amount","ask_price","bid_price","bid_amount"]
[1738178028234,0.36894685,101880.0,101870.0,0.21249822]
[1738178032640,0.00814685,101880.0,101870.0,0.21249822]
[1738178032835,0.00814685,101880.0,101870.0,0.57329822]
[1738178034033,0.56528485,101880.0,101870.0,0.01614122]
[1738178034834,0.56528485,101880.0,101850.0,0.00014685]
[1738178034835,0.36894685,101880.0,101850.0,0.00014685]
[1738178035033,0.3608,101860.0,101850.0,0.19653985]
[1738178035238,0.557177,101860.0,101850.0,0.19653985]
[1738178035443,0.557177,101860.0,101850.0,0.37134993]
[1738178036041,0.557177,101860.0,101850.0,0.17495693]
[1738178036340,0.755377,101860.0,101850.0,0.37135293]
[1738178036544,0.755377,101860.0,101850.0,0.17595693]
[1738178037239,0.756377,101860.0,101850.0,0.37235293]
[1738178037739,0.001,101860.0,101850.0,0.37235293]
[1738178037939,0.001,101860.0,101850.0,0.38739124]
[1738178038140,0.001,101860.0,101850.0,1.88739017]
[1738178038648,0.001,101860.0,101850.0,1.88739682]
[1738178038838,0.001,101860.0,101850.0,0.37235293]
[1738178039143,0.001,101860.0,101850.0,0.19754285]
[1738178039343,0.001,101860.0,101850.0,1.69754285]
[1738178039841,0.001,101860.0,101850.0,2.12343986]
[1738178040342,0.001,101860.0,101850.0,2.37113986]
[1738178040536,0.00014685,101880.0,101850.0,2.31349042]
[1738178040844,0.00014685,101880.0,101870.0,0.69590356]
[1738178041342,0.88094505,101910.0,101870.0,1.04909312]
[1738178041542,0.67204505,101910.0,101900.0,0.33504656]
[1738178041845,0.67204505,101910.0,101900.0,0.21156608]
[1738178042042,0.47204483,101910.0,101900.0,0.01526608]
[1738178042741,0.009,101910.0,101900.0,0.21256608]
[1738178043040,0.014,101910.0,101900.0,0.5581]
[1738178043248,0.014,101910.0,101900.0,0.77200878]
[1738178043843,0.014,101910.0,101900.0,0.5581]
[1738178044036,0.014,101910.0,101900.0,0.77200878]
[1738178044945,9.791e-05,101920.0,101910.0,0.19628]
[1738178045244,0.31635688,101940.0,101930.0,0.196242]
[1738178045447,0.31635688,101940.0,101930.0,0.77095078]
[1738178045637,0.31635688,101940.0,101930.0,1.13175078]
[1738178045837,0.31635688,101940.0,101930.0,2.64683301]
[1738178046044,0.51257888,101940.0,101930.0,0.21132423]
[1738178046349,0.31635688,101940.0,101930.0,0.57212423]
[1738178046843,0.196209,101950.0,101930.0,0.557042]
[1738178047034,0.555,101960.0,101940.0,0.21390878]
[1738178047238,0.555,101960.0,101950.0,0.41011178]
[1738178047437,0.37226875,101970.0,101950.0,0.77091178]
[1738178047438,0.01146875,101970.0,101950.0,0.77091178]
[1738178047645,0.19763979,101970.0,101960.0,0.556984]
[1738178047852,0.19763979,101970.0,101960.0,0.57226101]
[1738178048037,0.19763979,101970.0,101960.0,0.01527701]
[1738178048239,0.77234857,101970.0,101960.0,0.01527701]
[1738178048445,0.196184,101960.0,101950.0,0.00014685]
[1738178048649,0.556984,101960.0,101950.0,0.00014685]
[1738178048851,0.556984,101960.0,101950.0,0.00114685]
[1738178049146,0.196235,101940.0,101920.0,0.77096578]
[1738178049342,0.557006,101950.0,101930.0,0.196235]
[1738178049543,0.196206,101950.0,101930.0,0.196235]
[1738178049737,0.196206,101950.0,101920.0,0.57470878]
[1738178049948,0.196206,101950.0,101930.0,0.196231]
[1738178050149,0.196222,101940.0,101930.0,0.196231]
[1738178050758,0.557022,101940.0,101930.0,0.196231]
[1738178051144,0.3608,101940.0,101930.0,0.196231]
[1738178051347,0.3608,101940.0,101920.0,0.57485563]
[1738178051348,0.557022,101940.0,101920.0,0.57485563]
[1738178051549,0.196242,101930.0,101920.0,0.00014685]
[1738178051848,0.196227,101940.0,101920.0,0.77111663]
[1738178052053,0.557027,101940.0,101920.0,0.77111663]
[1738178052248,0.002,101940.0,101930.0,0.196242]
[1738178052549,0.003,101940.0,101930.0,0.73185208]
[1738178052845,0.00014685,101950.0,101930.0,0.58561008]
[1738178053048,1e-08,101950.0,101940.0,0.77093078]
[1738178053242,0.40253,101990.0,101950.0,0.04905]
[1738178053444,0.76333,101990.0,101980.0,0.196146]
[1738178053640,0.55693,101990.0,101980.0,0.196146]
[1738178054355,0.296111,102000.0,101990.0,0.196126]
[1738178054543,0.296111,102000.0,101970.0,0.57485563]
[1738178054544,0.4608,102000.0,101970.0,0.57485563]
[1738178054745,0.196126,101990.0,101980.0,0.196138]
[1738178055039,0.296112,102000.0,101990.0,0.196126]
[1738178055255,0.1,102000.0,101990.0,0.41003478]
[1738178055450,0.101,102000.0,101990.0,0.77083478]
[1738178055645,0.101,102000.0,101990.0,0.41003478]
[1738178055853,0.109,102000.0,101990.0,0.41003478]
[1738178056045,0.109,102000.0,101990.0,0.77083478]
[1738178056253,0.1,102000.0,101990.0,0.77083478]
[1738178056448,0.108,102000.0,101990.0,0.77183478]
[1738178058147,0.108,102000.0,101990.0,0.96483478]
[1738178059452,0.1,102000.0,101990.0,0.60403478]
[1738178059649,0.656907,102000.0,101990.0,0.001]
[1738178060148,0.87081578,102000.0,101990.0,1e-06]
[1738178060354,0.652007,102000.0,101990.0,1e-06]
[1738178060553,0.952007,102000.0,101990.0,1e-06]
[1738178061159,0.813928,102000.0,101970.0,0.00014685]
[1738178061362,0.556946,101980.0,101970.0,0.00014685]
[1738178061661,0.917746,101980.0,101970.0,0.00014685]
[1738178061960,0.7216,101980.0,101970.0,0.41022063]
[1738178062156,0.653011,102000.0,101980.0,0.196146]
[1738178062459,0.1041,102000.0,101990.0,0.41103478]
[1738178062762,0.1041,102000.0,101990.0,0.77183478]
[1738178062962,0.1041,102000.0,101990.0,0.78692737]
[1738178063752,0.00147135,102020.0,102010.0,0.196088]
[1738178063956,0.3608,102030.0,102020.0,0.196069]
[1738178064151,0.762335,102040.0,102020.0,0.01509259]
[1738178064349,0.08628854,102050.0,102030.0,0.21390878]
[1738178064555,0.08628854,102050.0,102040.0,0.55683]
[1738178064753,0.08628854,102050.0,102040.0,0.57192259]
[1738178064954,0.14379858,102060.0,102050.0,0.196011]
[1738178065154,0.14379858,102060.0,102050.0,0.77071978]
[1738178065761,0.14379858,102060.0,102050.0,2.27071978]
[1738178066162,0.60395404,102070.0,102060.0,0.195992]
[1738178066359,0.60395404,102070.0,102060.0,0.77070078]
[1738178066551,0.1,102100.0,102070.0,0.195973]
[1738178066859,0.37401615,102120.0,102110.0,0.195896]
[1738178066860,0.20056214,102120.0,102110.0,0.195896]
[1738178067046,0.20056214,102120.0,102110.0,0.77060478]
[1738178067250,0.20056214,102120.0,102110.0,0.21390878]
[1738178067559,0.20056214,102120.0,102110.0,0.40980478]
[1738178067953,0.20056214,102120.0,102110.0,0.77060478]
[1738178068156,0.20156214,102120.0,102110.0,0.77060478]
[1738178068660,0.54438295,102130.0,102120.0,0.195877]
[1738178068860,0.54438295,102130.0,102120.0,0.556677]
[1738178069052,0.74025095,102130.0,102110.0,0.21390878]
[1738178069249,1.10105095,102130.0,102120.0,1.5]
[1738178069559,0.195877,102120.0,102110.0,0.21390878]
[1738178070055,0.556677,102120.0,102110.0,0.22876879]
[1738178070663,0.195896,102110.0,102100.0,0.00014685]
[1738178070848,0.556696,102110.0,102100.0,0.00014685]
[1738178071253,0.556696,102110.0,102100.0,8.5e-07]
[1738178072251,0.556696,102110.0,102100.0,9.3e-07]
[1738178072449,0.556696,102110.0,102100.0,0.00200093]
[1738178072754,0.87470878,102110.0,102090.0,0.52443025]
[1738178072957,0.195934,102090.0,102080.0,0.34962017]
[1738178073153,0.556734,102090.0,102080.0,0.34962017]
[1738178074665,0.558734,102090.0,102080.0,0.34962017]
[1738178075267,0.558734,102090.0,102080.0,0.23409317]
[1738178075471,0.195953,102080.0,102070.0,0.00014685]
[1738178075663,0.556753,102080.0,102070.0,0.00014685]
[1738178075968,0.558738,102090.0,102070.0,0.21405563]
[1738178076154,0.3628,102090.0,102080.0,0.195953]
[1738178076459,0.002,102090.0,102080.0,0.195953]
[1738178076660,0.558734,102090.0,102080.0,1.5]
[1738178076960,0.196934,102090.0,102080.0,1.71094924]
[1738178077170,0.001,102090.0,102080.0,1.71094924]
[1738178077357,0.001,102090.0,102080.0,2.07174924]
[1738178077664,0.00014685,102100.0,102090.0,0.195934]
[1738178077861,0.00014685,102100.0,102090.0,0.42483902]
[1738178078057,0.55686185,102100.0,102090.0,0.42483902]
[1738178078254,0.55686185,102100.0,102090.0,1.72890502]
[1738178078467,0.55686185,102100.0,102090.0,0.01499624]
[1738178079056,0.55686185,102100.0,102090.0,0.01505064]
[1738178079257,0.55686185,102100.0,102090.0,0.22895942]
[1738178079456,0.19606185,102100.0,102090.0,0.42489342]
[1738178079755,0.00014685,102100.0,102090.0,0.42489342]
[1738178079955,0.36094685,102100.0,102090.0,0.42489342]
[1738178080158,0.001,102100.0,102090.0,0.42489342]
[1738178080954,0.001,102100.0,102090.0,0.83569342]
[1738178081258,0.36226959,102130.0,102120.0,0.195877]
[1738178081458,0.19732659,102130.0,102120.0,0.21092764]
[1738178081665,0.00146959,102130.0,102120.0,0.21092764]
[1738178082064,0.00146959,102130.0,102120.0,0.59621243]
[1738178082266,0.754084,102170.0,102150.0,0.195819]
[1738178082466,0.55801673,102190.0,102170.0,0.195767]
[1738178082766,0.55801573,102190.0,102170.0,0.44921121]
[1738178082966,0.556562,102180.0,102170.0,0.03953543]
[1738178083161,0.3608,102180.0,102140.0,0.00146851]
[1738178083368,0.556619,102150.0,102140.0,0.00146851]
[1738178083757,0.3608,102150.0,102120.0,0.196873]
[1738178083965,0.556641,102140.0,102130.0,0.40976078]
[1738178084263,0.556633,102150.0,102140.0,0.195838]
[1738178084569,0.55677985,102150.0,102130.0,0.40976178]
[1738178084765,0.19597985,102150.0,102140.0,0.002]
[1738178084958,0.55677985,102150.0,102140.0,0.002]
[1738178085964,0.36094685,102150.0,102120.0,0.00014685]
[1738178086155,0.917457,102130.0,102120.0,0.00014685]
[1738178086355,0.556657,102130.0,102120.0,0.00014685]
[1738178086761,0.917457,102130.0,102120.0,0.00014685]
[1738178087663,0.917457,102130.0,102120.0,0.00614685]
[1738178087866,0.917457,102130.0,102120.0,0.00714685]
[1738178088371,0.917457,102130.0,102120.0,0.00114685]
[1738178088572,0.917457,102130.0,102120.0,0.00014685]
[1738178089067,0.195896,102110.0,102100.0,0.00146872]
[1738178089263,0.917496,102110.0,102100.0,0.00146872]
[1738178090172,0.917496,102110.0,102090.0,1.69608085]
[1738178090173,0.195915,102100.0,102090.0,1.69608085]
[1738178090373,0.556715,102100.0,102090.0,1.50014685]
[1738178090870,0.556715,102100.0,102090.0,0.00014685]
[1738178091372,0.3618,102110.0,102090.0,0.19608085]
[1738178091573,0.557702,102110.0,102100.0,0.195915]
[1738178091869,0.3618,102110.0,102100.0,0.195915]
[1738178092072,0.195915,102100.0,102090.0,0.00014685]
[1738178092266,0.557704,102110.0,102090.0,0.19607685]
[1738178092469,0.3608,102100.0,102090.0,0.19607685]
[1738178092670,0.3608,102100.0,102090.0,0.19807685]
[1738178092973,0.556715,102100.0,102090.0,0.00214685]
[1738178094773,0.556715,102100.0,102090.0,0.00191694]
[1738178097773,0.763215,102100.0,102090.0,0.00191694]
[1738178098975,0.195934,102090.0,102080.0,0.00014685]
[1738178099281,0.556734,102090.0,102080.0,0.00014685]
[1738178100384,0.556734,102090.0,102080.0,0.00314685]
[1738178100876,0.77064278,102090.0,102080.0,0.00014685]
[1738178101079,0.195973,102070.0,102060.0,0.35030976]
[1738178101282,0.77068178,102070.0,102060.0,0.35030976]
[1738178101784,0.195992,102060.0,102050.0,0.39162898]
[1738178102078,0.196011,102050.0,102040.0,0.4078902]
[1738178102282,0.556811,102050.0,102040.0,0.4078902]
[1738178102482,0.77071978,102050.0,102040.0,0.40803705]
[1738178103584,0.77171978,102050.0,102040.0,0.40803705]
[1738178104281,0.97891978,102050.0,102040.0,0.40803705]
[1738178104593,0.97891978,102050.0,102040.0,0.00014685]
[1738178106674,1.27891978,102050.0,102040.0,0.00014685]
[1738178106976,0.19850903,102030.0,102010.0,0.4078902]
[1738178107180,1.13157778,102020.0,102010.0,0.4078902]
[1738178107483,0.7216,102020.0,102010.0,0.6039782]
[1738178108085,0.7216,102020.0,102010.0,0.6079782]
[1738178108300,0.556869,102020.0,102010.0,0.4118902]
[1738178108476,0.556869,102020.0,102010.0,0.6079782]
[1738178108784,0.36094685,102030.0,102010.0,0.4118902]
[1738178108982,0.36094685,102030.0,102020.0,0.196069]
[1738178109187,0.55799585,102030.0,102020.0,0.196069]
[1738178109376,0.36194685,102030.0,102020.0,0.196069]
[1738178109572,0.55799585,102030.0,102020.0,0.196069]
[1738178109888,0.36194685,102030.0,102020.0,0.196069]
[1738178110073,0.36094685,102030.0,102020.0,0.196069]
[1738178110673,0.00014685,102030.0,102020.0,0.196069]
[1738178110878,0.36094685,102030.0,102020.0,0.196069]
[1738178111086,0.55699585,102030.0,102010.0,0.388385]
[1738178111480,0.00014685,102030.0,102020.0,0.196069]
[1738178111672,0.00014685,102030.0,102020.0,0.198069]
[1738178112381,0.00014685,102030.0,102020.0,0.196069]
[1738178112688,0.00114685,102030.0,102020.0,0.196069]
[1738178113084,0.00114685,102030.0,102020.0,0.198069]
[1738178113085,0.00014685,102030.0,102020.0,0.198069]
[1738178113981,0.55699585,102030.0,102020.0,0.198069]
[1738178114284,0.55699585,102030.0,102020.0,0.199069]
[1738178114285,0.19619585,102030.0,102020.0,0.199069]
[1738178114784,0.00014685,102030.0,102020.0,0.199069]
[1738178115089,0.55699585,102030.0,102020.0,0.003]
[1738178115282,0.55699585,102030.0,102020.0,0.007]
[1738178115479,0.19619585,102030.0,102020.0,0.203069]
[1738178115883,0.55699585,102030.0,102020.0,0.197069]
[1738178116086,0.55799585,102030.0,102020.0,0.198069]
[1738178116388,0.55799585,102030.0,102020.0,0.002]
[1738178116685,0.196088,102010.0,102000.0,0.10014685]
[1738178116890,0.917688,102010.0,102000.0,0.29625385]
[1738178117186,0.556874,102020.0,102010.0,0.196088]
[1738178117484,0.196088,102010.0,102000.0,0.29625085]
[1738178117687,0.3608,102020.0,102000.0,0.29625085]
[1738178117884,0.556872,102020.0,102010.0,0.196088]
[1738178118086,0.3608,102020.0,102010.0,0.196088]
[1738178118289,0.556869,102020.0,102010.0,0.196088]
[1738178118789,0.55799985,102030.0,102000.0,1.60014685]
[1738178118981,0.55799985,102030.0,102000.0,2.20336985]
[1738178119183,0.3608,102020.0,102000.0,1.79354685]
[1738178119486,0.556888,102010.0,102000.0,0.29624885]
[1738178120686,0.3608,102010.0,102000.0,0.29624885]
[1738178120881,0.001,102010.0,102000.0,0.29624885]
[1738178121190,0.001,102010.0,102000.0,0.48964885]
[1738178121489,0.196069,102020.0,102010.0,0.196088]
[1738178121688,0.556869,102020.0,102010.0,0.196088]
[1738178121897,0.556869,102020.0,102000.0,0.48964585]
[1738178121898,0.196088,102010.0,102000.0,0.48964585]
[1738178122095,0.556888,102010.0,102000.0,0.29624585]
[1738178122486,0.556888,102010.0,102000.0,0.30224585]
[1738178123187,0.556888,102010.0,102000.0,0.30324585]
[1738178123688,0.556888,102010.0,102000.0,0.29924585]
[1738178123894,0.556888,102010.0,102000.0,0.29824585]
[1738178124495,0.3608,102010.0,102000.0,0.29824585]
[1738178124696,0.556888,102010.0,102000.0,0.29824585]
[1738178124997,0.556888,102010.0,102000.0,0.29624585]
[1738178125196,0.556888,102010.0,102000.0,0.10214685]
[1738178126094,0.77079678,102010.0,102000.0,0.10214685]
[1738178126882,0.556888,102010.0,102000.0,0.29825385]
[1738178127390,0.556888,102010.0,102000.0,0.10214685]
[1738178127995,0.556888,102010.0,102000.0,0.29825385]
[1738178128195,0.556888,102010.0,102000.0,0.10214685]
[1738178128995,0.77079678,102010.0,102000.0,0.10214685]
[1738178131795,0.88578464,102010.0,102000.0,0.10214685]
[1738178131996,0.88978464,102010.0,102000.0,0.10014685]
[1738178132393,0.69469664,102010.0,101970.0,0.00147097]
[1738178132590,0.556946,101980.0,101970.0,0.19762597]
[1738178132891,0.57470878,101980.0,101950.0,0.89808618]
[1738178133088,0.556984,101960.0,101950.0,0.89808618]
[1738178133292,0.196184,101960.0,101950.0,0.89808618]
[1738178133498,0.196184,101960.0,101950.0,0.70188718]
[1738178133499,0.77089278,101960.0,101950.0,0.70188718]
[1738178134407,0.77089278,101960.0,101950.0,0.71088718]
[1738178135305,0.77089278,101960.0,101950.0,0.71688718]
[1738178135897,0.98529278,101960.0,101950.0,0.70788718]
[1738178136098,0.98529278,101960.0,101950.0,0.70988718]
[1738178136405,0.771384,101960.0,101950.0,0.70988718]
[1738178136594,0.76895563,101970.0,101950.0,0.70988718]
[1738178136595,0.36094685,101970.0,101960.0,0.196184]
[1738178136796,0.00014685,101970.0,101960.0,0.41009278]
[1738178137108,0.00014685,101970.0,101960.0,0.77089278]
[1738178137305,0.36094685,101970.0,101960.0,1.696184]
[1738178137508,0.00014685,101970.0,101960.0,1.696184]
[1738178138108,0.00014685,101970.0,101960.0,0.196184]
[1738178138516,0.55712385,101970.0,101960.0,1.502]
[1738178138718,0.77103263,101970.0,101960.0,0.002]
[1738178139019,0.77103263,101970.0,101960.0,0.001]
[1738178139213,0.55812385,101970.0,101960.0,1.706184]
[1738178139814,0.56012385,101970.0,101960.0,0.205184]
[1738178140121,0.56012385,101970.0,101960.0,0.009]
[1738178140323,0.77403263,101970.0,101960.0,0.009]
[1738178140508,0.77203263,101970.0,101960.0,0.009]
[1738178140709,0.98463263,101970.0,101960.0,0.01]
[1738178141225,0.76972385,101970.0,101960.0,0.003]
[1738178141810,0.98463263,101970.0,101960.0,0.001]
[1738178142019,0.78845563,101970.0,101940.0,0.44319228]
[1738178142224,0.3608,101950.0,101940.0,0.63941528]
[1738178142523,0.78845563,101970.0,101950.0,0.196202]
[1738178142524,0.3608,101960.0,101950.0,0.196202]
[1738178143314,0.55811785,101970.0,101950.0,0.196202]
[1738178143625,0.55811785,101970.0,101960.0,0.196184]
[1738178143626,0.36194685,101970.0,101960.0,0.196184]
[1738178144027,0.36194685,101970.0,101950.0,0.197197]
[1738178144522,0.36094685,101970.0,101950.0,0.197197]
[1738178144723,0.36094685,101970.0,101950.0,0.001]
[1738178145024,0.36194685,101970.0,101960.0,0.196184]
[1738178146514,0.00114685,101970.0,101960.0,0.196184]
[1738178146916,0.00114685,101970.0,101960.0,0.197184]
[1738178147321,0.55811185,101970.0,101960.0,0.197184]
[1738178147829,0.55711185,101970.0,101960.0,0.199184]
[1738178148228,0.55711185,101970.0,101960.0,0.198184]
[1738178148529,0.55811185,101970.0,101960.0,0.196184]
[1738178149935,0.196195,101960.0,101950.0,0.196201]
[1738178150121,0.556995,101960.0,101950.0,0.196201]
[1738178150321,0.556995,101960.0,101940.0,0.44319228]
[1738178150617,0.556995,101960.0,101950.0,0.196203]
[1738178150824,0.556995,101960.0,101940.0,0.63940828]
[1738178151029,0.557003,101950.0,101940.0,0.23409228]
[1738178151827,0.557003,101950.0,101940.0,0.23609228]
[1738178152331,0.557003,101950.0,101940.0,0.24209228]
[1738178152923,0.760303,101950.0,101940.0,0.24209228]
[1738178153119,0.97421178,101950.0,101940.0,0.24209228]
[1738178155333,0.196223,101940.0,101930.0,0.2918931]
[1738178155535,0.196242,101930.0,101920.0,0.23934572]
[1738178155838,0.196242,101930.0,101910.0,0.35176346]
[1738178155839,0.557061,101920.0,101910.0,0.35176346]
[1738178156431,0.557061,101920.0,101910.0,0.23410416]
[1738178158929,0.557061,101920.0,101910.0,0.23510416]
[1738178159432,0.557061,101920.0,101910.0,1.73510416]
[1738178159632,0.67204886,101920.0,101910.0,1.501]
[1738178159831,0.67204886,101920.0,101910.0,0.001]
[1738178161241,0.67204886,101920.0,101900.0,0.1]
[1738178161242,0.19628,101910.0,101900.0,0.1]
[1738178161542,0.77098878,101910.0,101900.0,0.1]
[1738178161741,0.196311,101900.0,101870.0,0.589954]
[1738178161937,0.3608,101880.0,101870.0,0.589954]
[1738178162446,0.36094685,101890.0,101880.0,0.196338]
[1738178163739,0.36194685,101890.0,101880.0,0.205338]
[1738178164946,0.36194685,101890.0,101880.0,0.214338]
[1738178165135,0.00114685,101890.0,101880.0,0.214338]
[1738178165443,0.3608,101900.0,101890.0,0.196319]
[1738178165835,0.49956942,101900.0,101880.0,0.214334]
[1738178166041,0.3608,101890.0,101880.0,0.214334]
[1738178166743,0.69588842,101890.0,101880.0,0.009]
[1738178167535,0.69589142,101890.0,101870.0,0.39319785]
[1738178167736,0.69589142,101890.0,101870.0,0.19684685]
[1738178167737,0.3608,101890.0,101870.0,0.19684685]
[1738178167937,0.3608,101890.0,101880.0,0.196338]
[1738178168134,0.7216,101890.0,101880.0,0.196338]
[1738178168648,0.3618,101890.0,101880.0,1.714338]
[1738178168845,0.001,101890.0,101880.0,1.85310742]
[1738178169143,0.00014685,101900.0,101890.0,0.196319]
[1738178169347,0.00014685,101900.0,101890.0,0.408419]
[1738178169534,0.69601627,101900.0,101890.0,0.196319]
[1738178169739,0.00014685,101900.0,101890.0,0.196319]
[1738178170440,0.00014685,101900.0,101890.0,0.198319]
[1738178170846,0.55724685,101900.0,101890.0,0.002]
[1738178171041,0.69601627,101900.0,101890.0,0.002]
[1738178171350,0.55724685,101900.0,101890.0,0.002]
[1738178171540,0.69601627,101900.0,101890.0,0.002]
[1738178172051,0.49971627,101900.0,101890.0,0.002]
[1738178172248,1.13349127,101900.0,101890.0,0.002]
[1738178172637,1.08441627,101900.0,101890.0,0.002]
[1738178175050,0.196338,101880.0,101870.0,0.00014685]
[1738178175249,1.05670742,101880.0,101870.0,0.00014685]
[1738178176244,1.05770742,101880.0,101870.0,0.00914685]
[1738178177044,1.05770742,101880.0,101870.0,0.01414685]
[1738178177443,1.05770742,101880.0,101870.0,0.01441033]
[1738178177950,1.05770742,101880.0,101810.0,0.87906809]
[1738178177951,1.00013884,101880.0,101810.0,0.87906809]
[1738178178150,0.557234,101830.0,101820.0,0.2049]
[1738178178354,0.69600342,101830.0,101820.0,0.2049]
[1738178178542,0.69600342,101830.0,101810.0,0.34997867]
[1738178178543,0.196454,101820.0,101810.0,0.34997867]
[1738178178742,0.557254,101820.0,101810.0,0.34997867]
[1738178179145,0.69602342,101820.0,101810.0,0.34997867]
[1738178180054,0.69702342,101820.0,101810.0,0.36197867]
[1738178180647,0.69702342,101820.0,101810.0,0.35697867]
[1738178181149,0.70692766,101820.0,101810.0,0.007]
[1738178181551,0.196473,101810.0,101800.0,0.1]
[1738178181855,0.69604242,101810.0,101800.0,0.1]
[1738178182642,0.69704242,101810.0,101800.0,0.1]
[1738178182953,0.558273,101810.0,101800.0,0.1]
[1738178183551,0.558273,101810.0,101800.0,0.101]
[1738178183952,0.69704242,101810.0,101800.0,0.101]
[1738178184751,0.90934242,101810.0,101800.0,0.101]
[1738178185358,0.69704242,101810.0,101800.0,0.101]
[1738178185655,0.90554242,101810.0,101800.0,0.101]
[1738178185855,0.33530042,101780.0,101770.0,0.1943]
[1738178186054,0.33530042,101780.0,101750.0,0.00147414]
[1738178186055,0.19657,101760.0,101750.0,0.00147414]
[1738178186257,1.05693942,101760.0,101750.0,0.00147414]
[1738178186558,1.05693942,101760.0,101740.0,0.4204]
[1738178186559,1.05695542,101760.0,101740.0,0.4204]
[1738178186854,0.3608,101750.0,101740.0,0.4204]
[1738178187252,0.3608,101750.0,101740.0,0.406608]
[1738178187756,0.3608,101750.0,101740.0,0.54537742]
[1738178187954,0.3618,101760.0,101750.0,0.196574]
[1738178188561,0.3608,101760.0,101750.0,1.696574]
[1738178188746,0.3608,101760.0,101750.0,0.196574]
[1738178188947,0.69613942,101760.0,101740.0,0.415604]
[1738178189144,0.3608,101750.0,101740.0,0.415604]
[1738178189960,0.3608,101750.0,101740.0,0.54537342]
[1738178190752,0.3618,101760.0,101750.0,0.196589]
[1738178190955,0.00014685,101770.0,101750.0,0.196589]
[1738178191148,0.00014685,101770.0,101760.0,0.33533942]
[1738178191350,0.00014685,101770.0,101760.0,1.83533942]
[1738178191559,0.36094685,101770.0,101760.0,2.03893942]
[1738178191851,0.00014685,101770.0,101760.0,0.53893942]
[1738178192050,0.36194685,101770.0,101760.0,0.53893942]
[1738178192252,0.3608,101790.0,101760.0,0.74316942]
[1738178192462,0.28206452,101800.0,101790.0,0.196512]
[1738178192650,0.44636552,101800.0,101790.0,0.196512]
[1738178192851,0.08556552,101800.0,101790.0,0.196512]
[1738178193054,0.36227436,101810.0,101800.0,0.196492]
[1738178193261,0.00147436,101810.0,101800.0,0.69606142]
[1738178193559,0.39697338,101840.0,101830.0,0.196434]
[1738178193857,0.75777338,101840.0,101830.0,0.196434]
[1738178195063,0.56135338,101840.0,101830.0,0.196434]
[1738178195558,0.20055338,101840.0,101830.0,0.557234]
[1738178195858,0.31668249,101850.0,101830.0,0.557234]
[1738178195859,0.31616248,101850.0,101840.0,0.196415]
[1738178196458,0.31616248,101850.0,101840.0,0.557215]
[1738178196764,0.31616248,101850.0,101840.0,0.77139859]
[1738178197062,0.31616248,101850.0,101840.0,0.557215]
[1738178197063,0.31716248,101850.0,101840.0,0.557215]
[1738178197471,0.00114685,101850.0,101840.0,0.557215]
[1738178198067,0.00314685,101850.0,101840.0,0.196415]
[1738178198249,0.56034285,101850.0,101830.0,0.196431]
[1738178198449,0.3608,101840.0,101830.0,0.196431]
[1738178198658,0.56034485,101850.0,101830.0,0.196431]
[1738178199260,0.3608,101840.0,101830.0,0.196431]
[1738178199459,0.557215,101840.0,101830.0,0.196431]
[1738178199663,0.3608,101840.0,101820.0,0.19659985]
[1738178199857,0.196434,101830.0,101820.0,0.19659985]
[1738178200054,0.55834485,101850.0,101830.0,0.196434]
[1738178200367,0.3608,101840.0,101830.0,0.196434]
[1738178200673,0.557223,101840.0,101820.0,0.19659685]
[1738178200967,0.557234,101830.0,101820.0,0.19659685]
[1738178201168,0.557218,101840.0,101820.0,0.19659685]
[1738178201360,0.196418,101840.0,101830.0,0.196434]
[1738178201561,0.36294685,101850.0,101820.0,0.57513044]
[1738178201866,0.00014685,101850.0,101840.0,0.196415]
[1738178202162,0.36194685,101850.0,101840.0,0.196415]
[1738178202366,0.55834285,101850.0,101840.0,0.196415]
[1738178202553,0.00114685,101850.0,101840.0,0.196415]
[1738178203355,0.36194685,101850.0,101840.0,0.196415]
[1738178203868,0.00114685,101850.0,101840.0,0.196415]
[1738178204365,0.00314685,101850.0,101840.0,0.196415]
[1738178205261,0.00314685,101850.0,101840.0,0.41059859]
[1738178205656,0.00314685,101850.0,101840.0,0.196415]
[1738178206557,0.00314685,101850.0,101840.0,0.77139859]
[1738178207663,0.00314685,101850.0,101840.0,2.32139859]
[1738178208164,0.00314685,101850.0,101840.0,2.27139859]
[1738178209076,0.00314685,101850.0,101840.0,0.77139859]
[1738178209367,0.00314685,101850.0,101840.0,2.32139859]
[1738178209557,0.00147358,101860.0,101850.0,0.196396]
[1738178209755,0.36227358,101860.0,101850.0,0.196396]
[1738178210357,0.00147358,101860.0,101850.0,0.196396]
[1738178210959,0.36227358,101860.0,101850.0,0.196396]
[1738178211160,0.55865058,101860.0,101850.0,0.196396]
[1738178211360,0.56365058,101860.0,101850.0,0.196396]
[1738178211557,0.00847358,101860.0,101850.0,0.196396]
[1738178211766,0.36927358,101860.0,101850.0,0.196396]
[1738178212868,0.00847358,101860.0,101850.0,0.196396]
[1738178214767,0.00847358,101860.0,101850.0,0.557196]
[1738178214966,0.00847358,101860.0,101850.0,0.607196]
[1738178215376,0.007,101860.0,101850.0,0.818096]
[1738178215565,0.007,101860.0,101850.0,2.535696]
[1738178215771,0.00014685,101870.0,101860.0,0.196377]
[1738178216165,0.00014685,101870.0,101860.0,0.41056059]
[1738178216572,0.00014685,101870.0,101860.0,0.196377]
[1738178216874,0.00014685,101870.0,101860.0,0.33518853]
[1738178217077,0.00014685,101870.0,101860.0,0.196377]
[1738178217260,0.36094685,101870.0,101860.0,0.196377]
[1738178217874,0.00014685,101870.0,101860.0,0.196377]
[1738178218074,0.00114685,101870.0,101860.0,0.201377]
[1738178218259,0.00114685,101870.0,101860.0,0.202377]
[1738178218872,0.36194685,101870.0,101860.0,0.202377]
[1738178219068,0.55830385,101870.0,101860.0,0.202377]
[1738178219574,0.00114685,101870.0,101860.0,0.202377]
[1738178219779,0.00114685,101870.0,101860.0,0.34118853]
[1738178220273,0.36194685,101870.0,101860.0,0.202377]
[1738178220474,0.00114685,101870.0,101860.0,0.70198853]
[1738178220775,0.00114685,101870.0,101860.0,0.202377]
[1738178220968,0.55830385,101870.0,101860.0,0.202377]
[1738178221276,0.19750385,101870.0,101860.0,0.202377]
[1738178221473,0.55830385,101870.0,101860.0,0.202377]
[1738178221771,0.69711538,101870.0,101860.0,0.006]